fUSD/lending_fUSD_20240818
["ID","MTS","AMOUNT","RATE_DAILY","PERIOD"]
[335238763,1724011843403,-446.25,0.00011,2]
[335238776,1724011844007,-11962.4,0.00011,2]
[335238777,1724011844019,-1016.18242901,0.00011,2]
[335238778,1724011845064,-576.09,0.00011,2]
[335238779,1724011845080,-301.25385499,0.00011,2]
[335238791,1724011857893,-229.58972525,0.00016767,120]
[335238792,1724011857915,-150.0,0.0001766,120]
[335238793,1724011857938,-249.5,0.00017788,120]
[335238794,1724011858085,-150.5,0.00017798,120]
[335238795,1724011858149,-150.0,0.00017925,120]
[335238796,1724011858172,-150.0,0.00018163,120]
[335238797,1724011858198,-150.0,0.00019126,120]
[335238798,1724011858222,-150.0,0.0001992,120]
[335238799,1724011858245,-18341.3205495,0.0002,60]
[335238800,1724011876478,506.88,0.00010518,2]
[335238801,1724011888234,275.44,0.0001051,2]
[335238802,1724011891738,200.0,0.00010419,2]
[335238803,1724011908735,20649.5612672,0.00010161,2]
[335238804,1724011908759,3230.4387328,0.00010161,2]
[335238805,1724011911990,484.6,8.219e-05,2]
[335238806,1724011912214,484.6,0.0001048,2]
[335238807,1724011943460,150.0,0.00010841,2]
[335238808,1724011943481,16.8038496,0.00010841,2]
[335238809,1724011948254,166.8038496,0.00010851,2]
[335238810,1724011953243,150.0,0.00010861,2]
[335238811,1724011953263,16.8038496,0.00010861,2]
[335238812,1724011958238,150.0,0.00010871,2]
[335238813,1724011958258,16.8038496,0.00010871,2]
[335238814,1724011960823,174.67786875,0.00010899,2]
[335238815,1724011963238,150.0,0.0001088,2]
[335238816,1724011963260,16.8038496,0.0001088,2]
[335238817,1724011963462,133.1961504,0.0001084,2]
[335238818,1724011963483,150.0,0.0001084,2]
[335238819,1724011963503,30.13951829,0.0001084,2]
[335238820,1724011965847,119.86048171,0.00010899,2]
[335238821,1724011965870,54.81738704,0.00010899,2]
[335238822,1724011968246,150.0,0.0001089,2]
[335238823,1724011968267,16.8038496,0.0001089,2]
[335238824,1724011968385,133.1961504,0.00010852,2]
[335238825,1724011968407,150.0,0.00010852,2]
[335238826,1724011968428,30.13951827,0.00010852,2]
[335238827,1724011970622,174.67786875,0.00010899,2]
[335238828,1724011973287,150.0,0.000109,2]
[335238829,1724011973307,16.8038496,0.000109,2]
[335238830,1724011973388,133.1961504,0.00010864,2]
[335238831,1724011973412,150.0,0.00010864,2]
[335238832,1724011973433,30.13951827,0.00010864,2]
[335238833,1724011975625,119.86048173,0.00010899,2]
[335238834,1724011975647,54.81738702,0.00010899,2]
[335238835,1724011978362,150.0,0.00010876,2]
[335238836,1724011978382,150.0,0.00010876,2]
[335238837,1724011978404,13.33566867,0.00010876,2]
[335238838,1724011980626,174.67786875,0.00010899,2]
[335238839,1724011982805,150.0,9.953e-05,2]
[335238840,1724011982828,5.38,9.953e-05,2]
[335238841,1724011983377,144.62,0.00010888,2]
[335238842,1724011983398,150.0,0.00010888,2]
[335238843,1724011983419,18.71566867,0.00010888,2]
[335238844,1724011985646,131.28433133,0.00010899,2]
[335238845,1724011985669,43.39353742,0.00010899,2]
[335238846,1724011988390,150.0,0.000109,2]
[335238847,1724011988412,150.0,0.000109,2]
[335238848,1724011988434,13.33566867,0.000109,2]
[335238849,1724011990633,174.67786875,0.00010899,2]
[335238850,1724011995630,150.0,0.00010899,2]
[335238851,1724011995652,24.67786875,0.00010899,2]
[335238852,1724011996443,125.32213125,9.953e-05,2]
[335238853,1724011996464,124.67786875,9.953e-05,2]
[335238854,1724012000635,174.67786875,0.00010899,2]
[335238855,1724012005651,150.0,0.000109,2]
[335238856,1724012005672,24.67786875,0.000109,2]
[335238857,1724012033146,197.38559,0.0001089,2]
[335238858,1724012088896,297.66231422,0.00010899,2]
[335238859,1724012094579,150.0,0.00010899,2]
[335238860,1724012094599,114.49036255,0.00010899,2]
[335238862,1724012267180,155.0,0.00010899,2]
[335238863,1724012267757,155.21787713,0.00010899,2]
[335238864,1724012353151,150.0,9.952e-05,2]
[335238865,1724012379654,150.0,9.952e-05,2]
[335238866,1724012379674,150.0,9.952e-05,2]
[335238867,1724012379694,150.0,9.952e-05,2]
[335238868,1724012379715,144.49,9.952e-05,2]
[335238869,1724012380406,5.51,9.952e-05,2]
[335238870,1724012380431,150.0,9.952e-05,2]
[335238871,1724012380453,112.68,9.952e-05,2]
[335238872,1724012391428,150.0,0.00010899,2]
[335238873,1724012391452,75.40618881,0.00010899,2]
[335238874,1724012404672,-211.0,0.00014,30]
[335238875,1724012440386,74.59381119,8.219e-05,2]
[335238876,1724012440408,150.0,8.219e-05,2]
[335238877,1724012440430,150.0,8.219e-05,2]
[335238878,1724012440451,105.47618881,8.219e-05,2]
[335238879,1724012440636,44.52381119,0.00010473,2]
[335238880,1724012440658,294.07018601,0.00010473,2]
[335238881,1724012440683,141.4760028,0.00010473,2]
[335238882,1724012452453,6178.99480044,0.00010899,2]
[335238883,1724012453669,500.0,0.00010164,2]
[335238884,1724012453871,640.63939225,0.00010164,2]
[335238885,1724012475395,195.13980607,0.00010899,2]
[335238886,1724012477863,500.0,0.00010164,2]
[335238887,1724012502458,165.48,9.952e-05,2]
[335238888,1724012516974,153.11,7.213e-05,2]
[335238889,1724012524800,162.35906704,0.00010899,2]
[335238890,1724012567483,432.72137993,0.00010899,2]
[335238891,1724012640443,439.82643007,0.00010899,2]
[335238892,1724012716952,150.0,9.838e-05,2]
[335238898,1724012745485,170.2,9.952e-05,2]
[335238899,1724012773532,155.34727206,0.00010899,2]
[335238900,1724012790725,840.0,0.00010899,2]
[335238909,1724012831867,347.8973895,0.00010899,2]
[335238914,1724012890354,157.22291413,0.00010899,2]
[335238915,1724012896638,260.38331656,0.00010899,2]
[335238916,1724012916409,155.0,0.00010899,2]
[335238917,1724012932754,218.91005949,0.00010899,2]
[335238918,1724012939759,524.4,9.952e-05,2]
[335238921,1724012959912,367.87511774,0.00010899,2]
[335238922,1724012971787,242.6,9.922e-05,2]
[335238923,1724012989175,152.98,7.213e-05,2]
[335238924,1724012993979,155.09014454,0.00010899,2]
[335238931,1724013031552,-271.21586941,0.00010932,2]
[335238932,1724013031561,-207.94413059,0.00010937,2]
[335238953,1724013037642,-321.16969015,0.00010937,2]
[335238954,1724013037652,-300.0,0.00010937,2]
[335238955,1724013037663,-150.0,0.00010937,2]
[335238956,1724013037672,-300.0,0.00010937,2]
[335238957,1724013037682,-5541.08189547,0.00010938,2]
[335238958,1724013037693,-64084.72565715,0.00010938,2]
[335238963,1724013039914,-401.42,0.00010938,2]
[335238976,1724013042503,-8390.81697235,0.00010938,2]
[335238977,1724013042515,-38297.99548597,0.00010938,2]
[335238999,1724013045806,-179.39006925,0.00010938,2]
[335239003,1724013049416,5337.9117,0.00010839,2]
[335239004,1724013081152,155.0,0.00010899,2]
[335239005,1724013082130,473.8,8.219e-05,2]
[335239006,1724013082347,473.8,0.00010473,2]
[335239007,1724013093143,155.0,0.00010899,2]
[335239008,1724013094117,2681.9773,0.00010838,2]
[335239009,1724013094880,150.0,0.00010882,2]
[335239010,1724013106242,181.86810677,0.00010839,2]
[335239011,1724013107846,785.6009,0.00010838,2]
[335239014,1724013124174,155.0,0.00010899,2]
[335239015,1724013125130,170.53174495,0.00010839,2]
[335239016,1724013134986,1069826.75944816,0.0001088,2]
[335239017,1724013135010,229696.01611834,0.0001088,2]
[335239018,1724013135488,870303.98388166,0.00010868,2]
[335239019,1724013135512,11465.32452448,0.00010868,2]
[335239020,1724013135534,20000.0,0.00010868,2]
[335239021,1724013135559,20000.0,0.00010868,2]
[335239022,1724013135582,20000.0,0.00010868,2]
[335239023,1724013135604,20000.0,0.00010868,2]
[335239024,1724013135625,20000.0,0.00010868,2]
[335239025,1724013135647,20000.0,0.00010868,2]
[335239026,1724013135668,20000.0,0.00010868,2]
[335239027,1724013188012,150.0,9.878e-05,2]
[335239028,1724013188035,150.0,9.878e-05,2]
[335239029,1724013188058,150.0,9.878e-05,2]
[335239030,1724013491322,150.0,9.848e-05,2]
[335239031,1724013491506,150.0,9.848e-05,2]
[335239032,1724013491526,150.0,9.848e-05,2]
[335239033,1724013491547,150.0,9.848e-05,2]
[335239034,1724013491567,150.0,9.848e-05,2]
[335239035,1724013491586,150.0,9.848e-05,2]
[335239036,1724013491606,150.0,9.848e-05,2]
[335239037,1724013491627,150.0,9.848e-05,2]
[335239038,1724013491648,150.0,9.848e-05,2]
[335239039,1724013491668,150.0,9.848e-05,2]
[335239040,1724013491688,150.0,9.848e-05,2]
[335239041,1724013491708,150.0,9.848e-05,2]
[335239042,1724013491729,150.0,9.848e-05,2]
[335239043,1724013491748,150.0,9.848e-05,2]
[335239044,1724013491769,243.12863758,9.848e-05,2]
[335239045,1724013491789,150.0,9.848e-05,2]
[335239046,1724013491816,259.30044554,9.848e-05,2]
[335239047,1724013491842,240.45372085,9.848e-05,2]
[335239048,1724013491869,1743.92,9.848e-05,2]
[335239049,1724013491895,19163.19719603,9.848e-05,2]
[335239050,1724013495066,152.98,7.109e-05,2]
[335239051,1724013510047,150.0,8.617e-05,2]
[335239052,1724013510068,150.0,8.617e-05,2]
[335239053,1724013510089,150.0,8.617e-05,2]
[335239054,1724013510110,150.0,8.617e-05,2]
[335239055,1724013510141,150.0,8.617e-05,2]
[335239056,1724013510163,150.0,8.617e-05,2]
[335239057,1724013510184,150.0,8.617e-05,2]
[335239058,1724013510205,150.0,8.617e-05,2]
[335239059,1724013510227,150.0,8.617e-05,2]
[335239060,1724013510248,150.0,8.617e-05,2]
[335239061,1724013527548,250.0,9.848e-05,2]
[335239062,1724013531816,150.0,9.848e-05,2]
[335239063,1724013531838,92.6,9.848e-05,2]
[335239064,1724013581619,150.0,9.845e-05,2]
[335239065,1724013581639,150.0,9.845e-05,2]
[335239066,1724013581660,150.0,9.845e-05,2]
[335239067,1724013581680,150.0,9.845e-05,2]
[335239068,1724013581701,150.0,9.845e-05,2]
[335239069,1724013581722,150.0,9.845e-05,2]
[335239070,1724013581744,100.0,9.845e-05,2]
[335239071,1724013589958,467.62,8.219e-05,2]
[335239072,1724013617505,644.99793751,9.848e-05,2]
[335239073,1724013639017,150.0,9.842e-05,2]
[335239074,1724013639037,150.0,9.842e-05,2]
[335239075,1724013639058,150.0,9.842e-05,2]
[335239076,1724013639079,150.0,9.842e-05,2]
[335239077,1724013639099,150.0,9.842e-05,2]
[335239078,1724013639121,150.0,9.842e-05,2]
[335239079,1724013639141,150.0,9.842e-05,2]
[335239080,1724013639164,150.0,9.842e-05,2]
[335239081,1724013639184,150.0,9.842e-05,2]
[335239082,1724013639204,150.0,9.842e-05,2]
[335239083,1724013639226,150.0,9.842e-05,2]
[335239084,1724013639250,8296.79,9.842e-05,2]
[335239085,1724013640761,150.0,9.939e-05,2]
[335239086,1724013640782,150.0,9.939e-05,2]
[335239087,1724013640804,150.0,9.939e-05,2]
[335239088,1724013640825,150.0,9.939e-05,2]
[335239089,1724013640845,150.0,9.939e-05,2]
[335239090,1724013640866,150.0,9.939e-05,2]
[335239091,1724013640887,150.0,9.939e-05,2]
[335239092,1724013640908,150.0,9.939e-05,2]
[335239093,1724013640928,150.0,9.939e-05,2]
[335239094,1724013640949,150.0,9.939e-05,2]
[335239095,1724013640970,150.0,9.939e-05,2]
[335239096,1724013640991,150.0,9.939e-05,2]
[335239097,1724013641011,150.0,9.939e-05,2]
[335239098,1724013641031,150.0,9.939e-05,2]
[335239099,1724013641053,23.22351966,9.939e-05,2]
[335239100,1724013645008,150.0,9.842e-05,2]
[335239101,1724013645033,99.55,9.842e-05,2]
[335239102,1724013655604,155.0,9.962e-05,2]
[335239103,1724013673236,150.0,9.962e-05,2]
[335239104,1724013673258,114.49036255,9.962e-05,2]
[335239105,1724013679884,150.0,9.962e-05,2]
[335239106,1724013679907,130.40852034,9.962e-05,2]
[335239108,1724013933130,150.0,9.887e-05,2]
[335239109,1724013933154,5756.02,9.887e-05,2]
[335239110,1724013952417,268.19,9.814e-05,2]
[335239117,1724014032692,150.0,7.073e-05,2]
[335239118,1724014032712,2.98,7.073e-05,2]
[335239121,1724014047052,147.02,9.8e-05,2]
[335239122,1724014047075,102.98,9.8e-05,2]
[335239123,1724014056147,47.02,9.943e-05,2]
[335239124,1724014056167,107.98,9.943e-05,2]
[335239125,1724014060733,42.02,8.219e-05,2]
[335239126,1724014060756,150.0,8.219e-05,2]
[335239127,1724014060777,289.27759745,8.219e-05,2]
[335239128,1724014060800,9.97240255,8.219e-05,2]
[335239129,1724014076129,530.45,9.9e-05,2]
[335239130,1724014090258,205.92,9.822e-05,2]
[335239131,1724014095677,169.91677294,9.8e-05,2]
[335239132,1724014098526,-261.49779162,9.988e-05,2]
[335239145,1724014184578,253.79099211,9.943e-05,2]
[335239146,1724014192445,199.77,9.812e-05,2]
[335239147,1724014217235,1000.0,9.792e-05,2]
[335239160,1724014231762,-155.0,9.988e-05,2]
[335239161,1724014231771,-144.99,9.988e-05,2]
[335239162,1724014231782,-74.88841342,9.988e-05,2]
[335239163,1724014231792,-550.0,0.0001,2]
[335239164,1724014231801,-124.12751899,0.00010009,2]
[335239165,1724014231813,-30.87248101,0.00010009,2]
[335239166,1724014231822,-1330.58028136,0.00010026,2]
[335239167,1724014231834,-568.31293879,0.00010026,2]
[335239168,1724014231844,-629.85481121,0.00010026,2]
[335239175,1724014237737,-569.78816292,0.00010009,2]
[335239176,1724014237795,-117.62906563,0.00010009,2]
[335239177,1724014237805,-155.0,0.00010097,2]
[335239178,1724014237815,-460.4481801,0.00010097,2]
[335239179,1724014237824,-150.0,0.00010452,2]
[335239180,1724014237833,-491.27,0.00010466,2]
[335239181,1724014237843,-432.23526945,0.00010505,2]
[335239182,1724014237860,-150.99,0.00010699,2]
[335239183,1724014237869,-304.12480458,0.00010713,2]
[335239184,1724014237878,-150.0,0.00010736,2]
[335239185,1724014237888,-300.0,0.00010736,2]
[335239186,1724014237897,-88187.034,0.00010737,2]
[335239187,1724014237906,-900.4459,0.00010745,2]
[335239188,1724014237915,-313.33566867,0.00010774,2]
[335239189,1724014237924,-4115.22983101,0.00010799,2]
[335239190,1724014237933,-313.33566867,0.00010806,2]
[335239191,1724014237943,-235500.08890446,0.00010837,2]
[335239192,1724014237952,-313.33566867,0.00010837,2]
[335239193,1724014237962,-29932.21917103,0.00010839,2]
[335239194,1724014237972,-330.81006973,0.00010839,2]
[335239195,1724014237981,-38600.25317271,0.00010839,2]
[335239196,1724014237991,-330.81006973,0.0001084,2]
[335239197,1724014238000,-150.99,0.0001084,2]
[335239198,1724014238009,-153.40552145,0.00010842,2]
[335239199,1724014238019,-38600.25317271,0.00010843,2]
[335239200,1724014238028,-149357.34648946,0.00010843,2]
[335239208,1724014238864,-188.19,0.00010745,2]
[335239209,1724014238873,-2931.82875142,0.00010843,2]
[335239210,1724014239768,-1761.72,0.00010843,2]
[335239211,1724014239781,-4626.59156538,0.00010843,2]
[335239212,1724014239878,-500.0,0.00010843,2]
[335239213,1724014239934,-1244.6844767,0.00010843,2]
[335239214,1724014239948,-1347.10578871,0.00010843,2]
[335239215,1724014239963,-1244.31567727,0.00010843,2]
[335239216,1724014239974,-1581.58568819,0.00010843,2]
[335239217,1724014239985,-550.0,0.00010843,2]
[335239218,1724014240000,-70354.91046733,0.00010843,2]
[335239219,1724014240011,-21936.13671882,0.00010845,2]
[335239220,1724014240023,-48463.23838486,0.00010845,2]
[335239221,1724014240034,-10908.24907385,0.00010845,2]
[335239222,1724014240046,-12166.95600629,0.00010845,2]
[335239223,1724014240062,-1630.38532891,0.00010845,2]
[335239224,1724014240073,-331305.73332924,0.00010845,2]
[335239225,1724014240085,-6362.88044139,0.00010845,2]
[335239226,1724014240096,-635.093,0.00010845,2]
[335239227,1724014240107,-807.73443717,0.00010845,2]
[335239228,1724014240119,-795.16677077,0.00010845,2]
[335239229,1724014240130,-94740.2355432,0.00010845,2]
[335239231,1724014240284,-701.61531416,0.00010845,2]
[335239233,1724014240295,-769069.35121784,0.00010845,2]
[335239235,1724014240305,-151.0,0.00010845,2]
[335239237,1724014240314,-151.0,0.00010845,2]
[335239239,1724014240323,-151.0,0.00010845,2]
[335239241,1724014240332,-156.154482,0.00010845,2]
[335239242,1724014240341,-151.0,0.00010845,2]
[335239244,1724014240351,-240.717916,0.00010845,2]
[335239246,1724014240360,-151.0,0.00010845,2]
[335239248,1724014240370,-151.0,0.00010845,2]
[335239250,1724014240379,-151.0,0.00010845,2]
[335239252,1724014240390,-151.0,0.00010845,2]
[335239254,1724014240399,-151.0,0.00010845,2]
[335239256,1724014240408,-155.340187,0.00010845,2]
[335239258,1724014240417,-155.340187,0.00010845,2]
[335239260,1724014240426,-151.0,0.00010845,2]
[335239262,1724014240435,-220.189779,0.00010845,2]
[335239264,1724014240444,-220.189779,0.00010845,2]
[335239266,1724014240454,-151.0,0.00010845,2]
[335239268,1724014240463,-151.0,0.00010845,2]
[335239270,1724014240471,-151.0,0.00010845,2]
[335239272,1724014240480,-151.0,0.00010845,2]
[335239274,1724014240490,-151.0,0.00010845,2]
[335239276,1724014240499,-151.0,0.00010845,2]
[335239278,1724014240508,-151.0,0.00010845,2]
[335239280,1724014240517,-297.646079,0.00010845,2]
[335239282,1724014240526,-151.0,0.00010845,2]
[335239284,1724014240535,-151.0,0.00010845,2]
[335239285,1724014240544,-151.0,0.00010845,2]
[335239287,1724014240553,-187.618877,0.00010845,2]
[335239289,1724014240563,-655.250086,0.00010845,2]
[335239291,1724014240572,-655.250086,0.00010845,2]
[335239293,1724014240581,-462.97459314,0.00010845,2]
[335239295,1724014240590,-492205.40009516,0.00010845,2]
[335239297,1724014240606,-1596.3,0.00010845,2]
[335239299,1724014240617,-1185.25328138,0.00010845,2]
[335239301,1724014240627,-1130.54686907,0.00010845,2]
[335239304,1724014240638,-1840.0,0.00010845,2]
[335239306,1724014240649,-4153.22598848,0.00010845,2]
[335239308,1724014240664,-706.16587658,0.00010845,2]
[335239310,1724014240675,-437.81299791,0.00010845,2]
[335239312,1724014240687,-676.90538375,0.00010845,2]
[335239314,1724014240698,-1797.09890245,0.00010845,2]
[335239443,1724014242735,-347.36013889,0.00010799,2]
[335239444,1724014242744,-313.95300171,0.00010845,2]
[335239445,1724014242756,-38710.46975587,0.00010845,2]
[335239447,1724014242768,-7764.0017081,0.00010845,2]
[335239449,1724014242778,-993.12736041,0.00010845,2]
[335239450,1724014242791,-684.93719709,0.00010845,2]
[335239451,1724014242803,-1516.6,0.00010845,2]
[335239452,1724014242916,-7440.45079688,0.00010845,2]
[335239453,1724014242957,-10992.66936184,0.00010845,2]
[335239454,1724014242969,-10657.64146005,0.00010845,2]
[335239455,1724014242980,-1082.91734936,0.00010845,2]
[335239456,1724014242991,-754.9399989,0.00010845,2]
[335239457,1724014243002,-14038.9224587,0.00010845,2]
[335239459,1724014243650,-2491.95891115,0.00010845,2]
[335239460,1724014243661,-571.571,0.00010845,2]
[335239461,1724014243676,-6644.55524363,0.00010845,2]
[335239462,1724014243687,-1000.0,0.00010845,2]
[335239463,1724014243698,-697.23822464,0.00010845,2]
[335239464,1724014243708,-340.68338463,0.00010845,2]
[335239465,1724014243723,-463.3999995,0.00010845,2]
[335239466,1724014243734,-484.33001,0.00010845,2]
[335239467,1724014243745,-674.16794245,0.00010845,2]
[335239468,1724014243755,-527.49767029,0.00010845,2]
[335239469,1724014243766,-2934.77971038,0.00010845,2]
[335239470,1724014243777,-675.025,0.00010845,2]
[335239471,1724014243788,-338.33948636,0.00010845,2]
[335239472,1724014243799,-521.31163644,0.00010845,2]
[335239473,1724014243812,-444.24779552,0.00010845,2]
[335239474,1724014243823,-3265.01060924,0.00010845,2]
[335239475,1724014243834,-305.67881732,0.00010845,2]
[335239476,1724014243845,-2447.60779868,0.00010845,2]
[335239477,1724014243856,-265.7,0.00010845,2]
[335239478,1724014243868,-6679.72932,0.00010845,2]
[335239479,1724014243879,-5503.0,0.00010845,2]
[335239480,1724014243891,-529.685291,0.00010845,2]
[335239481,1724014243904,-311.7686698,0.00010845,2]
[335239482,1724014243914,-438.55758648,0.00010845,2]
[335239487,1724014245845,-1417.56443875,0.00010845,2]
[335239488,1724014245857,-844.76711332,0.00010845,2]
[335239489,1724014245868,-508.07079341,0.00010845,2]
[335239490,1724014245879,-3611.26811942,0.00010845,2]
[335239491,1724014245890,-660.54195458,0.00010845,2]
[335239492,1724014246060,-16579.45416409,0.00010845,2]
[335239493,1724014246071,-310.75725806,0.00010845,2]
[335239494,1724014246086,-907.5,0.00010845,2]
[335239495,1724014246097,-4287.8137196,0.00010845,2]
[335239496,1724014246108,-10401.00682633,0.00010845,2]
[335239497,1724014246119,-1006.8,0.00010845,2]
[335239498,1724014246130,-2382.59085341,0.00010845,2]
[335239499,1724014246146,-1326.68,0.00010845,2]
[335239500,1724014246157,-832.13,0.00010845,2]
[335239501,1724014246168,-1529.47956354,0.00010845,2]
[335239502,1724014246179,-723.01603011,0.00010845,2]
[335239503,1724014246190,-4417.52516995,0.00010845,2]
[335239504,1724014246201,-26965.36510827,0.00010845,2]
[335239506,1724014330239,170.2,9.855e-05,2]
[335239507,1724014347541,155.0,9.943e-05,2]
[335239508,1724014453833,166.8038496,9.909e-05,2]
[335239509,1724014469548,242.46946245,9.943e-05,2]
[335239510,1724014494474,200.10006755,9.943e-05,2]
[335239511,1724014497451,412.11149602,9.943e-05,2]
[335239512,1724014501424,291.73265066,9.943e-05,2]
[335239513,1724014503156,155.0,9.943e-05,2]
[335239514,1724014525174,155.0,9.943e-05,2]
[335239515,1724014541283,159.13257097,9.943e-05,2]
[335239516,1724014553375,235.26,9.831e-05,2]
[335239517,1724014555747,250.0,9.831e-05,2]
[335239518,1724014561818,547.49,8.219e-05,2]
[335239519,1724014584587,155.0,9.943e-05,2]
[335239520,1724014599371,432.47832469,9.943e-05,2]
[335239521,1724014613415,291.73265066,9.943e-05,2]
[335239522,1724014616171,155.0,9.943e-05,2]
[335239523,1724014627665,155.0,9.943e-05,2]
[335239524,1724014628523,412.11149602,9.943e-05,2]
[335239525,1724014638301,159.15825312,9.943e-05,2]
[335239527,1724014657665,155.0,9.943e-05,2]
[335239528,1724014658468,412.11149602,9.943e-05,2]
[335239529,1724014677600,155.0,9.943e-05,2]
[335239530,1724014684247,200.0,9.837e-05,2]
[335239531,1724014714421,291.73265066,9.943e-05,2]
[335239532,1724014721551,199.77,9.846e-05,2]
[335239533,1724014729291,159.15825312,9.837e-05,2]
[335239534,1724014736474,155.0,9.837e-05,2]
[335239535,1724014751181,155.0,9.837e-05,2]
[335239536,1724014787722,155.0,9.837e-05,2]
[335239537,1724014789173,163.67145426,9.837e-05,2]
[335239538,1724014796424,291.73265066,9.837e-05,2]
[335239539,1724014809254,48755.09425064,9.9e-05,2]
[335239540,1724014817484,412.11149602,9.837e-05,2]
[335239541,1724014819305,159.15825312,9.837e-05,2]
[335239542,1724014822815,388.2159,9.89e-05,2]
[335239543,1724014862542,153.76,7.853e-05,2]
[335239544,1724014863235,330.34282033,9.943e-05,2]
[335239545,1724014882437,267.69546311,9.837e-05,2]
[335239546,1724014888800,155.0,9.837e-05,2]
[335239547,1724014912477,412.11149602,9.943e-05,2]
[335239548,1724014930675,915.14996144,9.943e-05,2]
[335239549,1724014934196,155.0,9.943e-05,2]
[335239550,1724014948335,600.60859268,9.943e-05,2]
[335239551,1724014956784,305.0,9.943e-05,2]
[335239553,1724014970678,431.37387087,9.943e-05,2]
[335239554,1724014993650,155.0,9.943e-05,2]
[335239555,1724014999303,159.15825312,9.943e-05,2]
[335239556,1724015010183,151.57,8.219e-05,2]
[335239557,1724015020479,412.11149602,9.943e-05,2]
[335239558,1724015021712,155.0,9.943e-05,2]
[335239559,1724015104222,254.26198288,9.893e-05,2]
[335239560,1724015104322,159.15825312,9.943e-05,2]
[335239561,1724015109616,175.75667441,9.943e-05,2]
[335239562,1724015133483,412.17913044,9.943e-05,2]
[335239563,1724015150701,235.28,9.812e-05,2]
[335239564,1724015161528,585.39,8.219e-05,2]
[335239565,1724015193849,840.0,9.785e-05,2]
[335239566,1724015207331,159.15825312,9.943e-05,2]
[335239567,1724015229468,200.0,9.893e-05,2]
[335239568,1724015235500,412.0438616,9.785e-05,2]
[335239571,1724015292712,155.0,9.943e-05,2]
[335239572,1724015324834,158.97847807,9.785e-05,2]
[335239579,1724015354023,327.435133,9.736e-05,2]
[335239580,1724015354575,9275.57361174,9.943e-05,2]
[335239581,1724015403277,150.0,9.943e-05,2]
[335239582,1724015403472,150.0,9.943e-05,2]
[335239583,1724015403689,151.46325954,9.943e-05,2]
[335239592,1724015432687,3479.79,9.89e-05,2]
[335239593,1724015435128,-300.0,9.989e-05,2]
[335239594,1724015435138,-17343.97378947,9.99e-05,2]
[335239595,1724015437871,-653.67901261,9.99e-05,2]
[335239596,1724015437884,-2735.53908701,9.99e-05,2]
[335239597,1724015438182,-1143979.11594219,9.99e-05,2]
[335239598,1724015438195,-324.71629837,9.99e-05,2]
[335239600,1724015438209,-37102.9931221,9.99e-05,2]
[335239621,1724015440085,-1076.0,9.99e-05,2]
[335239622,1724015440306,-1548.08889873,9.99e-05,2]
[335239689,1724015443853,-5993.487757,9.99e-05,2]
[335239690,1724015443880,-630.14878998,9.99e-05,2]
[335239692,1724015445931,-2138.00000118,9.99e-05,2]
[335239693,1724015445942,-1135.31998,9.99e-05,2]
[335239694,1724015446093,-568.80754221,9.99e-05,2]
[335239696,1724015446424,200.0,9.8e-05,3]
[335239697,1724015448551,500.0,9.9e-05,3]
[335239699,1724015525603,440.08291615,9.943e-05,2]
[335239700,1724015536091,500.0,9.86e-05,2]
[335239701,1724015539586,500.0,9.487e-05,2]
[335239702,1724015540272,500.0,9.061e-05,2]
[335239703,1724015540737,293.68354989,9.943e-05,2]
[335239704,1724015546697,500.0,9.783e-05,2]
[335239705,1724015547915,500.0,8.83e-05,2]